fUSD/lending_fUSD_20241029
["ID","MTS","AMOUNT","RATE_DAILY","PERIOD"]
[340974282,1730195432129,-3261.4,0.00015879,2]
[340974283,1730195432138,-3261.4,0.00015883,2]
[340974284,1730195432147,-3261.4,0.00015887,2]
[340974285,1730195432156,-3261.4,0.00015892,2]
[340974286,1730195432165,-4000.0,0.00015892,2]
[340974287,1730195432174,-3261.4,0.00015896,2]
[340974288,1730195432183,-37907.1016,0.00015899,2]
[340974289,1730195432192,-3261.4,0.000159,2]
[340974290,1730195432201,-1871.1077,0.000159,2]
[340974291,1730195432211,-3261.4,0.00015904,2]
[340974292,1730195432220,-3261.4,0.00015908,2]
[340974293,1730195432229,-3261.4,0.00015912,2]
[340974294,1730195432238,-3261.4,0.00015917,2]
[340974295,1730195432247,-681.09,0.00016203,2]
[340974296,1730195432255,-6546.6243997,0.00016398,2]
[340974297,1730195432265,-1517.1652157,0.00016428,2]
[340974298,1730195432273,-150.0,0.00016438,2]
[340974299,1730195432283,-2942.61609429,0.00016503,2]
[340974300,1730195432292,-1122.84,0.00016534,2]
[340974301,1730195432301,-181.95,0.00016575,2]
[340974302,1730195432310,-806.13,0.00016575,2]
[340974303,1730195432319,-94530.07824891,0.00016593,2]
[340974304,1730195432330,-51946.98740274,0.00016593,2]
[340974305,1730195432340,-186.18,0.00016662,2]
[340974306,1730195432349,-156.91,0.00016712,2]
[340974307,1730195432358,-153.88,0.00016785,2]
[340974308,1730195432367,-153.88,0.00016794,2]
[340974309,1730195432376,-41412.73774306,0.00016795,2]
[340974310,1730195432385,-153.88,0.00016802,2]
[340974311,1730195432394,-153.88,0.00016811,2]
[340974312,1730195432403,-153.88,0.00016819,2]
[340974313,1730195432412,-1068.095,0.00016822,2]
[340974314,1730195432421,-153.88,0.00016827,2]
[340974315,1730195432429,-153.88,0.00016836,2]
[340974316,1730195432438,-153.88,0.00016844,2]
[340974317,1730195432447,-153.88,0.00016852,2]
[340974318,1730195432457,-153.88,0.00016861,2]
[340974319,1730195432465,-153.88,0.00016869,2]
[340974320,1730195432474,-1662.59676614,0.00016923,2]
[340974321,1730195432483,-806.13,0.0001699,2]
[340974322,1730195432492,-600.0,0.00017,2]
[340974323,1730195432501,-931.5578025,0.00017008,3]
[340974324,1730195432510,-802.48142492,0.00017017,2]
[340974325,1730195432519,-802.48142492,0.00017017,2]
[340974326,1730195432528,-802.48142492,0.00017017,2]
[340974327,1730195432537,-802.48142492,0.00017017,2]
[340974328,1730195432546,-802.48142492,0.00017017,2]
[340974329,1730195432555,-802.48142492,0.00017017,2]
[340974330,1730195432565,-802.48142492,0.00017017,2]
[340974331,1730195432574,-802.48142492,0.00017017,2]
[340974332,1730195432584,-802.48142492,0.00017017,2]
[340974333,1730195432594,-802.48142492,0.00017017,2]
[340974334,1730195432603,-802.48142492,0.00017017,2]
[340974335,1730195432612,-802.48142492,0.00017017,2]
[340974336,1730195432620,-802.48142492,0.00017017,2]
[340974337,1730195432629,-802.48142492,0.00017017,2]
[340974338,1730195432638,-802.48142492,0.00017017,2]
[340974339,1730195432647,-802.48142492,0.00017017,2]
[340974340,1730195432656,-802.48142492,0.00017017,2]
[340974341,1730195432665,-814.827293,0.00017017,2]
[340974342,1730195432674,-814.827293,0.00017017,2]
[340974343,1730195432683,-814.827293,0.00017017,2]
[340974344,1730195432692,-814.827293,0.00017017,2]
[340974345,1730195432702,-814.827293,0.00017017,2]
[340974346,1730195432711,-814.827293,0.00017017,2]
[340974347,1730195432720,-814.827293,0.00017017,2]
[340974348,1730195432728,-814.827293,0.00017017,2]
[340974349,1730195432738,-969.90732616,0.00017017,2]
[340974350,1730195432747,-969.90732616,0.00017017,2]
[340974351,1730195432756,-170.809127,0.00017018,2]
[340974352,1730195432766,-151.0,0.00017018,2]
[340974353,1730195432776,-153.181797,0.00017018,2]
[340974354,1730195432786,-155.882121,0.00017018,2]
[340974355,1730195432799,-151.0,0.00017018,2]
[340974356,1730195432810,-151.0,0.00017018,2]
[340974357,1730195432819,-151.0,0.00017018,2]
[340974358,1730195432829,-151.0,0.00017018,2]
[340974359,1730195432837,-151.0,0.00017018,2]
[340974360,1730195432846,-151.0,0.00017018,2]
[340974361,1730195432855,-159.701457,0.00017018,2]
[340974362,1730195432865,-151.0,0.00017018,2]
[340974363,1730195432874,-151.0,0.00017018,2]
[340974364,1730195432885,-151.0,0.00017018,2]
[340974365,1730195432894,-151.0,0.00017018,2]
[340974366,1730195432903,-151.0,0.00017018,2]
[340974367,1730195432912,-151.0,0.00017018,2]
[340974368,1730195432921,-151.0,0.00017018,2]
[340974369,1730195432930,-151.0,0.00017018,2]
[340974370,1730195432939,-158.55619,0.00017018,2]
[340974371,1730195432949,-20523.0752824,0.00017018,2]
[340974372,1730195432993,-552.68386261,0.00017018,2]
[340974373,1730195433004,-3538.57548688,0.00017018,2]
[340974382,1730195437977,-816.88903073,0.00017018,2]
[340974383,1730195438095,-580.5753858,0.00017018,2]
[340974397,1730195440203,-356.2709528,0.00017018,2]
[340974398,1730195440263,-579.56515209,0.00017018,2]
[340974404,1730195443831,-2766.24571101,0.00017018,2]
[340974429,1730196638313,-612.98,0.00015487,2]
[340974430,1730196638323,-530.92410073,0.00015618,2]
[340974431,1730196638333,-5485.32402127,0.00016493,2]
[340974439,1730196640207,-398.37827873,0.00016493,2]
[340974440,1730196640217,-181.95,0.00016631,2]
[340974441,1730196640226,-462.136,0.00016712,2]
[340974442,1730196640235,-156.91,0.00016712,2]
[340974443,1730196640245,-424.6858336,0.00016865,2]
[340974444,1730196640255,-1779.66725977,0.00017018,2]
[340974471,1730196646101,-415.83821206,0.00016762,2]
[340974473,1730196646111,-1325.69047827,0.00017018,2]
[340974478,1730196646181,-260.60477052,0.00017018,2]
[340974479,1730196646193,-4215.68212495,0.00017018,2]
[340974489,1730196646327,-14266.85486404,0.00017018,2]
[340974491,1730196965170,550.0,0.00015,2]
[340974497,1730197448553,582.33,0.00014359,2]
[340974569,1730197832200,-424.09,0.00015342,2]
[340974572,1730197832210,-158.25,0.00015342,2]
[340974575,1730197832220,-148.94810163,0.0001537,2]
[340974576,1730197832231,-923.48968854,0.0001537,2]
[340974577,1730197832368,-1004.56220983,0.0001537,2]
[340974578,1730197832377,-150.0,0.00015533,2]
[340974579,1730197832387,-83.62885033,0.00015972,2]
[340974580,1730197832455,-66.37114967,0.00015972,2]
[340974581,1730197832466,-721.77136148,0.00015972,2]
[340974582,1730197832477,-3980.57863852,0.00015972,2]
[340974583,1730197832487,-500.0,0.00015973,2]
[340974584,1730197832497,-1000.0,0.00015988,2]
[340974585,1730197832506,-150.0,0.00015989,2]
[340974586,1730197832516,-21640.87135498,0.0001599,3]
[340974587,1730197832528,-313.56832316,0.0001599,3]
[340974603,1730197838226,-348.72976798,0.00015242,2]
[340974604,1730197838236,-363.44023202,0.0001599,3]
[340974605,1730197838310,-2202.07818328,0.0001599,3]
[340974618,1730197840352,-18788.07063496,0.0001599,3]
[340974619,1730197840362,-192.61303116,0.0001599,2]
[340974620,1730197840371,-2748.39420129,0.00015998,2]
[340974621,1730197840380,-524.78158141,0.00015999,2]
[340974622,1730197840389,-524.78158141,0.00015999,2]
[340974623,1730197840398,-211.60111499,0.00015999,2]
[340974624,1730197840407,-524.78158141,0.00015999,2]
[340974625,1730197840418,-524.78158141,0.00015999,2]
[340974626,1730197840429,-524.78158141,0.00015999,2]
[340974627,1730197840438,-524.78158141,0.00015999,2]
[340974628,1730197840449,-524.78158141,0.00015999,2]
[340974629,1730197840459,-524.78158141,0.00015999,2]
[340974630,1730197840468,-524.78158141,0.00015999,2]
[340974631,1730197840478,-524.78158141,0.00015999,2]
[340974632,1730197840487,-524.78158141,0.00015999,2]
[340974633,1730197840496,-524.78158141,0.00015999,2]
[340974634,1730197840506,-524.78158141,0.00015999,2]
[340974635,1730197840517,-524.78158141,0.00015999,2]
[340974636,1730197840527,-524.78158141,0.00015999,2]
[340974637,1730197840537,-500.0,0.00015999,2]
[340974638,1730197840546,-524.78158141,0.00015999,2]
[340974639,1730197840556,-500.0,0.00015999,2]
[340974640,1730197840565,-524.78158141,0.00015999,2]
[340974641,1730197840574,-432.29543579,0.00015999,2]
[340974642,1730197840584,-524.78158141,0.00015999,2]
[340974643,1730197840593,-500.0,0.00015999,2]
[340974644,1730197840602,-524.78158141,0.00015999,2]
[340974645,1730197840611,-524.78158141,0.00015999,2]
[340974646,1730197840620,-500.0,0.00015999,2]
[340974647,1730197840630,-489.85264923,0.00015999,2]
[340974648,1730197840640,-738.74587831,0.00015999,2]
[340974649,1730197840649,-738.74587831,0.00015999,2]
[340974650,1730197840658,-738.74587831,0.00015999,2]
[340974651,1730197840667,-738.74587831,0.00015999,2]
[340974652,1730197840677,-738.74587831,0.00015999,2]
[340974653,1730197840686,-738.74587831,0.00015999,2]
[340974654,1730197840696,-738.74587831,0.00015999,2]
[340974655,1730197840705,-738.74587831,0.00015999,2]
[340974656,1730197840714,-738.74587831,0.00015999,2]
[340974657,1730197840723,-190961.3992462,0.00016,2]
[340974658,1730197840766,-4296.31262972,0.00016,2]
[340974663,1730197843339,-82085.0022,0.00016,2]
[340974667,1730197846526,-720.31134816,0.00016,2]
[340974668,1730197976056,553.21,0.00014331,2]
[340974670,1730198318250,150.0,0.00015001,2]
[340974671,1730198412965,-900.0,0.000169,6]
[340974672,1730198412995,-680.84958974,0.00018,10]
[340974673,1730198413018,-150.0,0.00018387,5]
[340974674,1730198413038,-150.0,0.00018399,5]
[340974675,1730198413059,-205.7225827,0.00018399,5]
[340974676,1730198413085,-1413.42782756,0.000199,7]
[340974681,1730198564810,525.54,0.00014068,2]
[340974708,1730198793674,550.0,0.00015,2]
[340974709,1730198842571,-150.8,0.00015342,2]
[340974710,1730198842596,-163.57,0.00015342,2]
[340974711,1730198842620,-424.6858336,0.00015781,2]
[340974712,1730198842644,-23628.6417,0.000159,2]
[340974713,1730198842667,-260.2014,0.000159,2]
[340974714,1730198842691,-2971.17170364,0.000159,2]
[340974715,1730198842715,-195.87891449,0.000159,2]
[340974716,1730198842740,-162.42,0.00015946,2]
[340974717,1730198842763,-250.0,0.00015985,2]
[340974718,1730198842787,-1785.12601734,0.00015999,2]
[340974719,1730198842809,-150.0,0.00015999,2]
[340974720,1730198842836,-163.085,0.00015999,2]
[340974721,1730198842862,-319941.29168409,0.00016,2]
[340974722,1730198842886,-618.31,0.00016,2]
[340974723,1730198842909,-25003.35,0.00016,2]
[340974724,1730198842933,-3930.18,0.00016,2]
[340974725,1730198842957,-673.7,0.0001611,2]
[340974726,1730198842981,-157.19,0.00016178,2]
[340974727,1730198843004,-9999.99,0.00016178,2]
[340974728,1730198843028,-7132.82274576,0.00016198,2]
[340974729,1730198843052,-9999.99,0.00016198,2]
[340974730,1730198843077,-473.34,0.00016198,2]
[340974732,1730198843101,-165.49,0.00016202,2]
[340974734,1730198843124,-150.99,0.00016202,2]
[340974736,1730198843149,-12235.67,0.00016202,2]
[340974738,1730198843174,-169.62,0.00016236,2]
[340974740,1730198843198,-200.0,0.00016293,2]
[340974741,1730198843221,-1308.72,0.00016313,2]
[340974742,1730198843243,-525.54,0.00016332,2]
[340974743,1730198843266,-500.0,0.00016383,2]
[340974744,1730198843288,-500.0,0.00016383,2]
[340974745,1730198843312,-500.0,0.00016383,2]
[340974746,1730198843337,-500.0,0.00016383,2]
[340974747,1730198843359,-500.0,0.00016383,2]
[340974748,1730198843382,-500.0,0.00016383,2]
[340974749,1730198843405,-500.0,0.00016383,2]
[340974750,1730198843431,-500.0,0.00016383,2]
[340974751,1730198843454,-500.0,0.00016383,2]
[340974752,1730198843478,-500.0,0.00016383,2]
[340974753,1730198843503,-500.0,0.00016383,2]
[340974754,1730198843528,-500.0,0.00016383,2]
[340974755,1730198843551,-500.0,0.00016383,2]
[340974756,1730198843576,-500.0,0.00016383,2]
[340974757,1730198843600,-500.0,0.00016383,2]
[340974758,1730198843624,-500.0,0.00016383,2]
[340974759,1730198843647,-457.74682635,0.00016383,2]
[340974760,1730198843789,-500.0,0.00016383,2]
[340974761,1730198843820,-500.0,0.00016383,2]
[340974762,1730198843848,-500.0,0.00016383,2]
[340974763,1730198843871,-500.0,0.00016383,2]
[340974764,1730198843894,-500.0,0.00016383,2]
[340974765,1730198843917,-23900.0,0.00016384,2]
[340974766,1730198843940,-506.258,0.00016493,2]
[340974767,1730198843964,-166.663,0.00016493,2]
[340974768,1730198843987,-181.95,0.00016575,2]
[340974769,1730198844011,-483.67,0.00016575,2]
[340974770,1730198844034,-150.0,0.000169,2]
[340974771,1730198844057,-673.7,0.00016916,2]
[340974772,1730198844084,-483.67,0.0001699,2]
[340974773,1730198844107,-508.894657,0.00017,2]
[340974774,1730198844131,-600.0,0.00017,2]
[340974775,1730198844154,-327.51258289,0.00017017,2]
[340974776,1730198844177,-2000.0,0.00017018,2]
[340974777,1730198844200,-200.0,0.00017018,2]
[340974778,1730198844224,-200.0,0.00017018,2]
[340974779,1730198844248,-2000.0,0.00017188,2]
[340974780,1730198844272,-200.0,0.00017188,2]
[340974781,1730198844296,-200.0,0.00017188,2]
[340974782,1730198844321,-165.49,0.00017215,2]
[340974783,1730198844345,-151.0,0.00017234,2]
[340974784,1730198844369,-151.0,0.00017234,2]
[340974785,1730198844393,-153.292375,0.00017234,2]
[340974786,1730198844417,-151.0,0.00017234,2]
[340974787,1730198844442,-151.0,0.00017234,2]
[340974788,1730198844465,-172.898822,0.00017234,2]
[340974789,1730198844488,-156.217596,0.00017234,2]
[340974790,1730198844512,-155.466075,0.00017234,2]
[340974791,1730198844536,-160.182154,0.00017234,2]
[340974792,1730198844560,-216.337689,0.00017234,2]
[340974793,1730198844584,-151.0,0.00017234,2]
[340974794,1730198844607,-151.0,0.00017234,2]
[340974795,1730198844631,-216.337689,0.00017234,2]
[340974796,1730198844653,-151.0,0.00017234,2]
[340974797,1730198844676,-151.0,0.00017234,2]
[340974798,1730198844699,-157.781564,0.00017234,2]
[340974799,1730198844726,-151.0,0.00017234,2]
[340974800,1730198844750,-151.0,0.00017234,2]
[340974801,1730198844774,-151.0,0.00017234,2]
[340974802,1730198844799,-242.088421,0.00017234,2]
[340974803,1730198844829,-242.088421,0.00017234,2]
[340974804,1730198844853,-1455.082754,0.00017234,2]
[340974805,1730198844878,-1455.082754,0.00017234,2]
[340974806,1730198844901,-49352.44965986,0.00017234,2]
[340974807,1730198844925,-300.0,0.0001729,2]
[340974808,1730198844949,-150.0,0.00017293,2]
[340974809,1730198844977,-500.0,0.00017293,2]
[340974810,1730198845008,-2000.0,0.0001736,2]
[340974811,1730198845038,-200.0,0.0001736,2]
[340974812,1730198845065,-483.67,0.00017404,2]
[340974813,1730198845093,-200.0,0.00017534,2]
[340974814,1730198845123,-35765.41017913,0.00017539,2]
[340974815,1730198845152,-151.0,0.00017539,2]
[340974816,1730198845182,-151.0,0.00017539,2]
[340974817,1730198845212,-151.0,0.00017539,2]
[340974818,1730198845242,-188.981977,0.00017539,2]
[340974819,1730198845272,-216.337689,0.00017539,2]
[340974820,1730198845300,-151.0,0.00017539,2]
[340974821,1730198845326,-151.0,0.00017539,2]
[340974822,1730198845354,-216.337689,0.00017539,2]
[340974823,1730198845383,-165.085958,0.00017539,2]
[340974824,1730198845412,-156.027307,0.00017539,2]
[340974825,1730198845444,-151.0,0.00017539,2]
[340974826,1730198845474,-151.0,0.00017539,2]
[340974827,1730198845505,-151.0,0.00017539,2]
[340974828,1730198845531,-242.088421,0.00017539,2]
[340974829,1730198845560,-242.088421,0.00017539,2]
[340974830,1730198845590,-1455.082754,0.00017539,2]
[340974831,1730198845618,-1455.082754,0.00017539,2]
[340974832,1730198845645,-1500.0,0.0001758,2]
[340974833,1730198845675,-1500.0,0.00017588,2]
[340974834,1730198845701,-1500.0,0.00017601,2]
[340974835,1730198845727,-150.0,0.00017604,2]
[340974836,1730198845754,-1500.0,0.00017617,2]
[340974837,1730198845781,-1500.0,0.00017636,2]
[340974838,1730198845808,-1251.12378416,0.00017679,2]
[340974839,1730198845835,-1500.0,0.0001768,2]
[340974840,1730198845861,-1500.0,0.00017689,2]
[340974841,1730198845889,-200.0,0.00017709,2]
[340974842,1730198845916,-1500.0,0.00017715,2]
[340974843,1730198845944,-150.0,0.00017717,2]
[340974844,1730198845971,-673.7,0.00017721,2]
[340974845,1730198845999,-151.0,0.00017733,2]
[340974846,1730198846026,-151.0,0.00017733,2]
[340974847,1730198846053,-151.0,0.00017733,2]
[340974848,1730198846082,-216.337689,0.00017733,2]
[340974849,1730198846110,-155.048603,0.00017733,2]
[340974850,1730198846137,-166.091287,0.00017733,2]
[340974851,1730198846164,-216.337689,0.00017733,2]
[340974852,1730198846192,-151.0,0.00017733,2]
[340974853,1730198846220,-151.0,0.00017733,2]
[340974854,1730198846246,-151.0,0.00017733,2]
[340974855,1730198846272,-242.088421,0.00017733,2]
[340974857,1730198846440,-242.088421,0.00017733,2]
[340974858,1730198846471,-1455.082754,0.00017733,2]
[340974859,1730198846495,-1455.082754,0.00017733,2]
[340974860,1730198846518,-33642.64620971,0.00017733,2]
[340974861,1730198846541,-1500.0,0.00017759,2]
[340974862,1730198846565,-182.39,0.00017769,2]
[340974863,1730198846588,-483.67,0.00017818,2]
[340974864,1730198846612,-1500.0,0.0001783,2]
[340974865,1730198846636,-13390.10147979,0.00017877,2]
[340974866,1730198846659,-3190.83730809,0.00017908,3]
[340974867,1730198846683,-250.0,0.00017977,2]
[340974868,1730198846707,-1000.0,0.00017986,2]
[340974869,1730198846730,-20129.40730402,0.00018,2]
[340974870,1730198846753,-1126.53463277,0.00018,2]
[340974871,1730198846776,-1025.49313958,0.00018,2]
[340974872,1730198846800,-1465.0,0.00018,2]
[340974873,1730198846824,-273.0,0.00018,2]
[340974874,1730198846849,-151.0,0.00018,2]
[340974875,1730198846873,-151.0,0.00018,2]
[340974876,1730198846898,-156.801164,0.00018,2]
[340974877,1730198846921,-157.474024,0.00018,2]
[340974878,1730198846945,-151.0,0.00018,2]
[340974879,1730198846968,-154.450708,0.00018,2]
[340974880,1730198846992,-151.0,0.00018,2]
[340974881,1730198847014,-151.0,0.00018,2]
[340974882,1730198847037,-151.0,0.00018,2]
[340974883,1730198847061,-151.93957,0.00018,2]
[340974884,1730198847085,-151.93957,0.00018,2]
[340974885,1730198847111,-151.0,0.00018,2]
[340974886,1730198847135,-151.0,0.00018,2]
[340974887,1730198847158,-152.938299,0.00018,2]
[340974888,1730198847181,-151.0,0.00018,2]
[340974889,1730198847205,-151.0,0.00018,2]
[340974890,1730198847228,-151.0,0.00018,2]
[340974891,1730198847251,-160.087023,0.00018,2]
[340974892,1730198847275,-151.0,0.00018,2]
[340974893,1730198847298,-151.0,0.00018,2]
[340974894,1730198847322,-157.255395,0.00018,2]
[340974895,1730198847345,-151.0,0.00018,2]
[340974896,1730198847368,-158.13497,0.00018,2]
[340974897,1730198847390,-151.0,0.00018,2]
[340974898,1730198847413,-151.0,0.00018,2]
[340974899,1730198847437,-151.0,0.00018,2]
[340974900,1730198847460,-151.0,0.00018,2]
[340974901,1730198847483,-151.0,0.00018,2]
[340974902,1730198847506,-152.049908,0.00018,2]
[340974903,1730198847533,-151.0,0.00018,2]
[340974904,1730198847557,-151.0,0.00018,2]
[340974905,1730198847584,-277.355367,0.00018,2]
[340974906,1730198847607,-241.737196,0.00018,2]
[340974907,1730198847630,-241.737196,0.00018,2]
[340974908,1730198847653,-156.482602,0.00018,2]
[340974909,1730198847676,-151.0,0.00018,2]
[340974910,1730198847701,-151.0,0.00018,2]
[340974911,1730198847723,-500.0,0.00018,2]
[340974912,1730198847746,-216.337689,0.00018,2]
[340974913,1730198847769,-216.337689,0.00018,2]
[340974914,1730198847792,-151.0,0.00018,2]
[340974915,1730198847815,-151.0,0.00018,2]
[340974916,1730198847842,-151.0,0.00018,2]
[340974917,1730198847866,-242.088421,0.00018,2]
[340974918,1730198847889,-242.088421,0.00018,2]
[340974919,1730198847913,-1455.082754,0.00018,2]
[340974920,1730198847937,-1455.082754,0.00018,2]
[340974921,1730198847961,-180.0,0.00018082,2]
[340974922,1730198847984,-1685.04021323,0.000181,2]
[340974923,1730198848008,-151.0,0.000181,2]
[340974924,1730198848032,-151.0,0.000181,2]
[340974925,1730198848055,-151.0,0.000181,2]
[340974926,1730198848078,-151.0,0.000181,2]
[340974927,1730198848102,-165.49,0.00018228,2]
[340974928,1730198848125,-181.95,0.00018233,2]
[340974929,1730198848148,-483.67,0.00018233,2]
[340974930,1730198848173,-160.716971,0.00018233,2]
[340974931,1730198848198,-151.0,0.00018233,2]
[340974932,1730198848221,-154.605878,0.00018233,2]
[340974933,1730198848245,-169.62,0.00018266,2]
[340974934,1730198848270,-200.0,0.0001833,2]
[340974935,1730198848293,-182.39,0.00018397,2]
[340974936,1730198848316,-673.7,0.00018527,2]
[340974937,1730198848340,-500.0,0.00018558,2]
[340974938,1730198848363,-525.54,0.00018596,2]
[340974939,1730198848386,-300.0,0.0001866,2]
[340974940,1730198848409,-249.60981452,0.00018662,2]
[340974941,1730198848432,-150.0,0.00018845,2]
[340974942,1730198848455,-150.0,0.00018845,2]
[340974943,1730198848477,-156.398,0.00018947,2]
[340974944,1730198848500,-150.0,0.00018947,2]
[340974945,1730198848523,-150.0,0.00018947,2]
[340974946,1730198848546,-150.0,0.00018947,2]
[340974947,1730198848569,-264.262,0.00018947,2]
[340974948,1730198848593,-229.876,0.00018947,2]
[340974949,1730198848615,-150.0,0.00018947,2]
[340974950,1730198848637,-151.128566,0.00018947,2]
[340974951,1730198848660,-153.815877,0.00018947,2]
[340974952,1730198848780,-153.123296,0.00018947,2]
[340974953,1730198848804,-2971.1717036,0.0001898,2]
[340974954,1730198848828,-500.0,0.00019,2]
[340974955,1730198848852,-650.0,0.00019,2]
[340974956,1730198848875,-182.39,0.00019026,2]
[340974957,1730198848899,-151.0,0.00019048,2]
[340974958,1730198848923,-301.002283,0.00019048,2]
[340974959,1730198848948,-216.337689,0.00019048,2]
[340974960,1730198848976,-216.337689,0.00019048,2]
[340974961,1730198849000,-151.0,0.00019048,2]
[340974962,1730198849025,-259.424664,0.00019048,2]
[340974963,1730198849050,-151.0,0.00019048,2]
[340974964,1730198849074,-242.088421,0.00019048,2]
[340974965,1730198849099,-242.088421,0.00019048,2]
[340974966,1730198849126,-1455.082754,0.00019048,2]
[340974967,1730198849150,-1455.082754,0.00019048,2]
[340974968,1730198849174,-289.158,0.00019049,2]
[340974969,1730198849198,-155.421,0.00019049,2]
[340974970,1730198849223,-5903.0,0.00019049,2]
[340974971,1730198849246,-561.0,0.00019049,2]
[340974972,1730198849270,-465.666,0.00019049,2]
[340974973,1730198849293,-1248.0,0.00019049,2]
[340974974,1730198849317,-13571.0,0.00019049,2]
[340974975,1730198849342,-1154.0,0.00019049,2]
[340974976,1730198849365,-260.684,0.00019049,2]
[340974977,1730198849388,-557.0,0.00019049,2]
[340974978,1730198849413,-1982.0,0.00019049,2]
[340974979,1730198849437,-1087.0,0.00019049,2]
[340974980,1730198849460,-3367.0,0.00019049,2]
[340974981,1730198849485,-1914.0,0.00019049,2]
[340974982,1730198849509,-1253.0,0.00019049,2]
[340974983,1730198849533,-150.0,0.00019049,2]
[340974984,1730198849557,-811.0,0.00019049,2]
[340974985,1730198849580,-807.0,0.00019049,2]
[340974986,1730198849604,-304.4,0.00019151,2]
[340974987,1730198849630,-151.0,0.00019178,2]
[340974988,1730198849654,-154.950109,0.00019178,2]
[340974989,1730198849677,-156.778278,0.00019178,2]
[340974990,1730198849701,-151.0,0.00019178,2]
[340974991,1730198849724,-151.0,0.00019178,2]
[340974992,1730198849748,-200.0,0.00019178,2]
[340974993,1730198849770,-200.0,0.00019178,2]
[340974994,1730198849793,-200.0,0.00019178,2]
[340974995,1730198849816,-200.0,0.00019178,2]
[340974996,1730198849840,-197.0,0.00019178,2]
[340974997,1730198849863,-236.08,0.00019178,2]
[340974998,1730198849886,-200.0,0.00019178,2]
[340974999,1730198849911,-165.49,0.0001924,2]
[340975000,1730198849940,-673.7,0.00019332,2]
[340975001,1730198849964,-150.0,0.00019375,2]
[340975002,1730198849990,-150.0,0.00019383,2]
[340975003,1730198850015,-150.0,0.00019384,2]
[340975004,1730198850041,-150.0,0.00019385,2]
[340975005,1730198850067,-150.0,0.00019385,2]
[340975006,1730198850091,-150.0,0.00019387,2]
[340975007,1730198850117,-150.0,0.00019388,2]
[340975008,1730198850143,-150.0,0.00019401,2]
[340975009,1730198850168,-150.0,0.0001941,2]
[340975010,1730198850192,-150.0,0.0001941,2]
[340975011,1730198850215,-150.0,0.00019413,2]
[340975012,1730198850238,-150.0,0.00019414,2]
[340975013,1730198850262,-150.0,0.00019416,2]
[340975014,1730198850285,-150.0,0.00019417,2]
[340975015,1730198850308,-150.0,0.00019418,2]
[340975016,1730198850334,-150.0,0.00019432,2]
[340975017,1730198850358,-150.0,0.00019434,2]
[340975018,1730198850382,-1500.0,0.00019439,2]
[340975019,1730198850406,-150.0,0.00019442,2]
[340975020,1730198850430,-150.0,0.00019444,2]
[340975021,1730198850455,-150.0,0.00019446,2]
[340975022,1730198850479,-1500.0,0.00019448,2]
[340975023,1730198850504,-150.0,0.00019448,2]
[340975024,1730198850529,-150.0,0.00019449,2]
[340975025,1730198850555,-150.0,0.00019451,2]
[340975026,1730198850580,-150.0,0.00019451,2]
[340975027,1730198850605,-150.0,0.00019453,2]
[340975028,1730198850630,-150.0,0.00019457,2]
[340975029,1730198850654,-150.0,0.00019457,2]
[340975030,1730198850678,-150.0,0.00019457,2]